bitfinex-derivatives/quotes_BTCF0:USTF0_20241122
["timestamp","ask_amount","ask_price","bid_price","bid_amount"]
[1732317554700,0.00017796,98665.0,98653.0,0.031]
[1732317554889,0.32431038,98669.0,98653.0,0.031]
[1732317556002,0.32431038,98669.0,98661.0,0.3608]
[1732317556299,0.05073109,98672.0,98661.0,0.3608]
[1732317556598,0.39248,98678.0,98670.0,0.3608]
[1732317556799,0.3908,98678.0,98671.0,0.0638]
[1732317556996,0.441406,98678.0,98671.0,0.0638]
[1732317557204,0.050607,98677.0,98671.0,0.0638]
[1732317558494,0.01901278,98678.0,98671.0,0.0638]
[1732317558699,0.06449715,98680.0,98671.0,0.0638]
[1732317559105,0.050607,98676.0,98671.0,0.0638]
[1732317561799,0.06449715,98680.0,98671.0,0.0638]
[1732317561995,0.48268561,98679.0,98671.0,0.0638]
[1732317562197,0.050606,98678.0,98671.0,0.0638]
[1732317562396,0.43207961,98679.0,98671.0,0.0638]
[1732317562397,0.40332761,98679.0,98671.0,0.0638]
[1732317562602,0.050606,98678.0,98671.0,0.0638]
[1732317562899,0.050608,98675.0,98671.0,0.0638]
[1732317563900,0.050608,98674.0,98671.0,0.0638]
[1732317564699,0.050609,98673.0,98671.0,0.0638]
[1732317565100,0.050609,98673.0,98671.0,0.4246]
[1732317565802,0.050606,98678.0,98671.0,0.4246]
[1732317566002,0.050607,98677.0,98671.0,0.4246]
[1732317566507,0.0206615,98679.0,98671.0,0.4246]
[1732317566806,0.050607,98677.0,98671.0,0.4246]
[1732317567211,0.050607,98676.0,98671.0,0.4246]
[1732317567404,0.050608,98674.0,98671.0,0.4246]
[1732317567611,0.050609,98672.0,98671.0,0.4246]
[1732317569411,0.02022615,98673.0,98671.0,0.4246]
[1732317570522,0.10512432,98681.0,98671.0,0.4246]
[1732317571609,0.050605,98680.0,98671.0,0.4246]
[1732317571809,0.10512432,98681.0,98671.0,0.4246]
[1732317572113,0.050608,98675.0,98671.0,0.4246]
[1732317572414,0.050608,98674.0,98671.0,0.4246]
[1732317573317,0.10512432,98681.0,98671.0,0.4246]
[1732317573517,0.050607,98676.0,98671.0,0.4246]
[1732317574116,0.02022619,98673.0,98671.0,0.4246]
[1732317575419,0.0949585,98681.0,98671.0,0.4246]
[1732317575816,0.050609,98673.0,98671.0,0.4246]
[1732317576010,0.0949585,98681.0,98671.0,0.4246]
[1732317576216,0.050608,98675.0,98671.0,0.4246]
[1732317576815,0.050608,98674.0,98671.0,0.4246]
[1732317577319,0.050606,98679.0,98671.0,0.4246]
[1732317577920,0.0949585,98681.0,98671.0,0.4246]
[1732317578316,0.0202262,98673.0,98671.0,0.4246]
[1732317580622,0.08479169,98681.0,98671.0,0.4246]
[1732317580823,0.050607,98676.0,98671.0,0.4246]
[1732317583225,0.02022609,98673.0,98671.0,0.4246]
[1732317584730,0.050606,98679.0,98671.0,0.4246]
[1732317585029,0.050607,98678.0,98671.0,0.4246]
[1732317585423,0.11529018,98681.0,98671.0,0.4246]
[1732317585727,0.050605,98680.0,98671.0,0.4246]
[1732317586029,0.11529018,98681.0,98671.0,0.4246]
[1732317586030,0.050606,98679.0,98671.0,0.4246]
[1732317587523,0.02022609,98674.0,98671.0,0.4246]
[1732317587826,0.02022609,98674.0,98671.0,0.47521]
[1732317588127,0.050605,98680.0,98671.0,0.47521]
[1732317588632,0.08489517,98681.0,98671.0,0.47521]
[1732317590027,0.050606,98679.0,98671.0,0.47521]
[1732317590228,0.08489517,98681.0,98671.0,0.47521]
[1732317590229,0.02039802,98681.0,98671.0,0.4246]
[1732317590532,0.129883,98685.0,98679.0,0.3608]
[1732317591641,0.050603,98684.0,98679.0,0.3608]
[1732317592333,0.07928,98685.0,98679.0,0.3608]
[1732317592528,0.04888399,98685.0,98679.0,0.3608]
[1732317592825,0.0792209,98688.0,98679.0,0.3608]
[1732317593032,0.0792209,98688.0,98681.0,0.050604]
[1732317593227,0.07924,98691.0,98679.0,0.3608]
[1732317593228,0.00152045,98696.0,98679.0,0.3608]
[1732317593428,0.050598,98694.0,98685.0,0.050602]
[1732317593621,0.050598,98694.0,98686.0,0.0302]
[1732317593824,0.05143343,98696.0,98686.0,0.0302]
[1732317594023,0.050599,98693.0,98687.0,0.0618]
[1732317595231,0.050601,98688.0,98687.0,0.0618]
[1732317595435,0.050599,98692.0,98687.0,0.0618]
[1732317596030,0.02022611,98694.0,98687.0,0.0618]
[1732317596233,0.0506,98691.0,98687.0,0.0618]
[1732317596626,0.05143343,98696.0,98687.0,0.0618]
[1732317596627,0.04125953,98696.0,98687.0,0.0618]
[1732317596828,0.34,98737.0,98687.0,0.0618]
[1732317596829,0.06449715,98697.0,98691.0,0.3608]
[1732317597028,0.050599,98693.0,98691.0,0.3608]
[1732317598531,0.050599,98692.0,98687.0,0.0312]
[1732317598932,0.050598,98694.0,98687.0,0.0312]
[1732317599433,0.050598,98693.0,98687.0,0.0312]
[1732317600131,0.050599,98692.0,98687.0,0.0312]
[1732317600332,0.0708201,98694.0,98687.0,0.0312]
[1732317600533,0.35062009,98698.0,98687.0,0.0312]
[1732317601037,0.050598,98694.0,98687.0,0.0312]
[1732317601233,0.12989636,98707.0,98688.0,0.0314]
[1732317601435,0.12989636,98707.0,98690.0,0.06449715]
[1732317601624,0.05065636,98707.0,98691.0,0.07924]
[1732317601933,0.11508715,98710.0,98698.0,0.050596]
[1732317602241,0.41073847,98708.0,98695.0,0.3608]
[1732317602826,0.02022211,98707.0,98695.0,0.3608]
[1732317603533,0.050592,98705.0,98695.0,0.3608]
[1732317603933,0.050592,98705.0,98694.0,0.050598]
[1732317604129,0.050593,98704.0,98694.0,0.050598]
[1732317604325,0.050593,98704.0,98693.0,0.07924]
[1732317604525,0.050593,98704.0,98693.0,0.129838]
[1732317604741,0.40227358,98708.0,98693.0,0.129838]
[1732317604933,0.40055357,98708.0,98693.0,0.129838]
[1732317605436,0.050593,98704.0,98693.0,0.129838]
[1732317606038,0.050592,98706.0,98693.0,0.07924]
[1732317607440,0.050592,98706.0,98693.0,0.129838]
[1732317608537,0.40219358,98708.0,98693.0,0.07924]
[1732317608737,0.31955356,98708.0,98695.0,0.050597]
[1732317608927,0.37014456,98708.0,98695.0,0.050597]
[1732317609434,0.050591,98707.0,98695.0,0.050597]
[1732317612832,0.33977516,98708.0,98695.0,0.050597]
[1732317612833,0.30936615,98708.0,98695.0,0.050597]
[1732317613836,0.050591,98707.0,98695.0,0.050597]
[1732317615539,0.050593,98704.0,98694.0,0.07912]
[1732317615934,0.11509015,98704.0,98694.0,0.07912]
[1732317616239,0.06449715,98704.0,98694.0,0.07912]
[1732317617039,0.050593,98703.0,98694.0,0.07912]
[1732317617230,0.06449715,98704.0,98694.0,0.07912]
[1732317619041,0.11509015,98704.0,98695.0,0.3608]
[1732317619442,0.06449715,98704.0,98695.0,0.3608]
[1732317619832,0.11509015,98704.0,98695.0,0.3608]
[1732317620343,0.050593,98704.0,98695.0,0.3608]
[1732317620548,0.29286329,98708.0,98695.0,0.3608]
[1732317620736,0.050593,98703.0,98695.0,0.3608]
[1732317621644,0.21186328,98708.0,98695.0,0.3608]
[1732317621843,0.050592,98706.0,98695.0,0.3608]
[1732317624748,0.03975206,98708.0,98695.0,0.3608]
[1732317625046,0.0202216,98708.0,98695.0,0.3608]
[1732317625750,0.050592,98706.0,98695.0,0.3608]
[1732317626843,0.050592,98705.0,98695.0,0.3608]
[1732317627646,0.050593,98704.0,98695.0,0.3608]
[1732317627844,0.07067655,98708.0,98695.0,0.3608]
[1732317628150,0.050593,98703.0,98695.0,0.3608]
[1732317628853,0.04027054,98708.0,98695.0,0.3608]
[1732317629048,0.050593,98703.0,98695.0,0.3608]
[1732317631647,0.050591,98707.0,98695.0,0.3608]
[1732317631851,0.06049062,98708.0,98705.0,0.3608]
[1732317632151,0.050592,98706.0,98705.0,0.3608]
[1732317633447,0.03008261,98708.0,98705.0,0.3608]
[1732317633649,0.02022008,98708.0,98705.0,0.3608]
[1732317633845,0.050592,98706.0,98705.0,0.3608]
[1732317636753,0.04151482,98708.0,98705.0,0.3608]
[1732317637361,0.050592,98706.0,98705.0,0.3608]
[1732317637957,0.04151482,98708.0,98705.0,0.3608]
[1732317638754,0.04151482,98708.0,98701.0,0.3608]
[1732317639259,0.04151482,98708.0,98702.0,0.0314]
[1732317640467,0.06173427,98708.0,98702.0,0.0314]
[1732317640856,0.03132426,98709.0,98702.0,0.0314]
[1732317641772,0.05165059,98709.0,98702.0,0.0314]
[1732317641967,0.14369772,98715.0,98702.0,0.0314]
[1732317642470,0.05059,98709.0,98702.0,0.0314]
[1732317642969,0.19444854,98715.0,98702.0,0.0314]
[1732317643562,0.05059,98709.0,98702.0,0.0314]
[1732317644061,0.19444854,98715.0,98702.0,0.0314]
[1732317644270,0.050591,98708.0,98702.0,0.0314]
[1732317644762,0.16403953,98715.0,98702.0,0.0314]
[1732317644965,0.050591,98707.0,98702.0,0.0314]
[1732317648872,0.03408814,98712.0,98702.0,0.0314]
[1732317649163,0.050591,98707.0,98702.0,0.0314]
[1732317649961,0.02022008,98709.0,98702.0,0.0314]
[1732317651168,0.050591,98707.0,98702.0,0.0314]
[1732317651361,0.050592,98705.0,98702.0,0.0314]
[1732317652762,0.03408814,98712.0,98702.0,0.0314]
[1732317652964,0.050592,98706.0,98702.0,0.0314]
[1732317654568,0.050593,98705.0,98702.0,0.0314]
[1732317656774,0.10550747,98712.0,98702.0,0.0314]
[1732317657180,0.050589,98711.0,98702.0,0.0314]
[1732317657480,0.050591,98707.0,98702.0,0.0314]
[1732317658075,0.10550747,98712.0,98702.0,0.0314]
[1732317658275,0.050592,98706.0,98702.0,0.0314]
[1732317659188,0.050592,98705.0,98702.0,0.0314]
[1732317660376,0.050593,98704.0,98702.0,0.0314]
[1732317660768,0.09532054,98712.0,98702.0,0.0314]
[1732317660984,0.050592,98705.0,98702.0,0.0314]
[1732317662974,0.09532054,98712.0,98702.0,0.0314]
[1732317663179,0.050593,98704.0,98702.0,0.0314]
[1732317663580,0.09532054,98712.0,98702.0,0.0314]
[1732317663782,0.050593,98705.0,98702.0,0.0314]
[1732317664782,0.08513361,98712.0,98702.0,0.0314]
[1732317664982,0.050592,98706.0,98702.0,0.0314]
[1732317665989,0.08513361,98712.0,98702.0,0.0314]
[1732317666284,0.050589,98711.0,98702.0,0.00066237]
[1732317666488,0.050591,98708.0,98702.0,0.00066237]
[1732317666693,0.12779156,98715.0,98702.0,0.00066237]
[1732317666983,0.050589,98711.0,98701.0,0.3608]
[1732317667189,0.050592,98707.0,98701.0,0.3608]
[1732317668184,0.050591,98707.0,98701.0,0.3608]
[1732317668394,0.06449715,98712.0,98701.0,0.3608]
[1732317668578,0.050592,98706.0,98701.0,0.3608]
[1732317668782,0.03408914,98712.0,98701.0,0.3608]
[1732317669286,0.050591,98707.0,98701.0,0.3608]
[1732317669488,0.050592,98706.0,98701.0,0.3608]
[1732317672189,0.02022008,98709.0,98701.0,0.3608]
[1732317672380,0.050593,98705.0,98701.0,0.3608]
[1732317672987,0.02390221,98712.0,98701.0,0.3608]
[1732317673188,0.050592,98705.0,98701.0,0.3608]
[1732317674488,0.050596,98699.0,98688.0,0.14308]
[1732317674685,0.050598,98693.0,98690.0,0.06449715]
[1732317674881,0.050598,98693.0,98688.0,0.0642]
[1732317675085,0.050599,98692.0,98688.0,0.0642]
[1732317675287,0.06449715,98700.0,98688.0,0.0642]
[1732317675288,0.3608,98697.0,98688.0,0.0642]
[1732317675589,0.0506,98690.0,98688.0,0.0642]
[1732317676883,0.27979999,98697.0,98688.0,0.05513101]
[1732317677081,0.05089337,98697.0,98690.0,0.3608]
[1732317677281,0.050594,98701.0,98690.0,0.3608]
[1732317678283,0.050595,98700.0,98690.0,0.3608]
[1732317678694,0.050594,98703.0,98698.0,0.3608]
[1732317679779,0.050592,98705.0,98698.0,0.3608]
[1732317680988,0.0986576,98708.0,98698.0,0.3608]
[1732317681294,0.0986576,98708.0,98692.0,0.050598]
[1732317681795,0.050592,98705.0,98690.0,0.3608]
[1732317681999,0.050592,98705.0,98693.0,0.050598]
[1732317682694,0.050592,98705.0,98700.0,0.3608]
[1732317683192,0.0986576,98708.0,98700.0,0.3608]
[1732317683394,0.050592,98706.0,98700.0,0.3608]
[1732317684983,0.06824959,98708.0,98700.0,0.3608]
[1732317685691,0.050592,98705.0,98700.0,0.3608]
[1732317685890,0.05018561,98708.0,98700.0,0.3608]
[1732317686096,0.050591,98708.0,98700.0,0.3608]
[1732317687800,0.050591,98707.0,98700.0,0.3608]
[1732317688107,0.050592,98706.0,98700.0,0.3608]
[1732317688898,0.10447174,98710.0,98700.0,0.3608]
[1732317689801,0.050592,98706.0,98700.0,0.3608]
[1732317692396,0.15506174,98710.0,98700.0,0.3608]
[1732317692801,0.05059,98709.0,98700.0,0.3608]
[1732317693499,0.0942824,98710.0,98700.0,0.3608]
[1732317694601,0.050591,98709.0,98700.0,0.3608]
[1732317695197,0.050591,98708.0,98700.0,0.3608]
[1732317695808,0.050594,98701.0,98700.0,0.3608]
[1732317695997,0.0942824,98710.0,98700.0,0.3608]
[1732317695998,0.050592,98706.0,98700.0,0.3608]
[1732317696696,0.0942824,98710.0,98700.0,0.3608]
[1732317696896,0.06387539,98710.0,98700.0,0.3608]
[1732317697101,0.050593,98704.0,98700.0,0.3608]
[1732317697500,0.050592,98705.0,98700.0,0.3608]
[1732317697898,0.05059,98709.0,98700.0,0.3608]
[1732317698207,0.050593,98704.0,98700.0,0.3608]
[1732317698406,0.02022022,98708.0,98700.0,0.3608]
[1732317698607,0.050593,98704.0,98700.0,0.3608]
[1732317698808,0.02022022,98708.0,98700.0,0.3608]
[1732317699102,0.050593,98703.0,98700.0,0.3608]
[1732317700909,0.0536886,98710.0,98700.0,0.3608]
[1732317701610,0.050592,98705.0,98700.0,0.3608]
[1732317702308,0.0536886,98710.0,98700.0,0.3608]
[1732317702710,0.05059,98709.0,98700.0,0.3608]
[1732317703012,0.050592,98706.0,98700.0,0.3608]
[1732317705007,0.10799841,98710.0,98700.0,0.3608]
[1732317705204,0.06449715,98710.0,98700.0,0.3608]
[1732317706109,0.050592,98706.0,98700.0,0.3608]
[1732317707015,0.06449715,98710.0,98700.0,0.3608]
[1732317707410,0.050592,98705.0,98700.0,0.3608]
[1732317709017,0.05430981,98710.0,98700.0,0.3608]
[1732317709412,0.050592,98706.0,98700.0,0.3608]
[1732317713015,0.05430981,98710.0,98700.0,0.3608]
[1732317713016,0.04412247,98710.0,98700.0,0.3608]
[1732317713324,0.050593,98705.0,98700.0,0.3608]
[1732317714222,0.050593,98703.0,98700.0,0.3608]
[1732317714621,0.050594,98701.0,98700.0,0.3608]
[1732317714810,0.050592,98705.0,98700.0,0.3608]
[1732317715219,0.050593,98704.0,98700.0,0.3608]
[1732317717012,0.01371546,98710.0,98700.0,0.3608]
[1732317717715,0.050593,98704.0,98700.0,0.3608]
[1732317718620,0.02022067,98709.0,98700.0,0.17515224]
[1732317718824,0.050594,98701.0,98700.0,0.17515224]
[1732317719215,0.050598,98694.0,98690.0,0.3608]
[1732317720123,0.050596,98698.0,98690.0,0.3608]
[1732317720614,0.050597,98696.0,98690.0,0.3941]
[1732317721023,0.33039699,98705.0,98690.0,0.3941]
[1732317721813,0.050597,98696.0,98690.0,0.3941]
[1732317725126,0.37978093,98705.0,98690.0,0.3941]
[1732317725329,0.06449715,98700.0,98690.0,0.3941]
[1732317725923,0.050597,98696.0,98690.0,0.3941]
[1732317729015,0.03409414,98700.0,98690.0,0.3941]
[1732317729829,0.050597,98696.0,98690.0,0.3941]
[1732317733018,0.34937792,98705.0,98690.0,0.3941]
[1732317733218,0.050596,98698.0,98690.0,0.3941]
[1732317737033,0.03409314,98700.0,98690.0,0.3941]
[1732317737432,0.050597,98697.0,98690.0,0.3941]
[1732317739131,0.00163539,98694.0,98690.0,0.3941]
[1732317740236,0.00163539,98692.0,98690.0,0.3941]
[1732317741129,0.07864,98704.0,98690.0,0.3941]
[1732317741336,0.06449715,98700.0,98690.0,0.3941]
[1732317741535,0.050596,98698.0,98690.0,0.3941]
[1732317742829,0.050596,98697.0,98690.0,0.3941]
[1732317745037,0.03409314,98700.0,98690.0,0.3941]
[1732317745833,0.050596,98697.0,98690.0,0.3941]
[1732317746737,0.050594,98701.0,98690.0,0.3941]
[1732317746931,0.06449715,98700.0,98690.0,0.3941]
[1732317747234,0.11509215,98700.0,98690.0,0.3941]
[1732317749032,0.09858929,98700.0,98690.0,0.3941]
[1732317749725,0.06449715,98700.0,98690.0,0.3941]
[1732317749942,0.050595,98699.0,98690.0,0.3941]
[1732317754240,0.06449715,98700.0,98690.0,0.3941]
[1732317754537,0.050597,98696.0,98690.0,0.3941]
[1732317754936,0.06449715,98700.0,98690.0,0.3941]
[1732317755131,0.3608,98691.0,98665.0,0.3608]
[1732317755433,0.06449715,98684.0,98665.0,0.3608]
[1732317755639,0.050604,98682.0,98670.0,0.06601709]
[1732317756039,0.17493715,98690.0,98670.0,0.06601709]
[1732317756237,0.06449715,98684.0,98670.0,0.00151994]
[1732317756427,0.050606,98678.0,98670.0,0.00151994]
[1732317759537,0.15993443,98690.0,98670.0,0.00151994]
[1732317759737,0.050605,98680.0,98670.0,0.00151994]
[1732317760142,0.06449715,98684.0,98670.0,0.00151994]
[1732317760339,0.050605,98680.0,98670.0,0.06601709]
[1732317762540,0.050602,98686.0,98670.0,0.06601709]
[1732317762847,0.07852,98683.0,98676.0,0.06449715]
[1732317763148,0.07852,98683.0,98677.0,0.0641]
[1732317763348,0.07852,98685.0,98677.0,0.0641]
[1732317764047,0.12664199,98686.0,98677.0,0.0641]
[1732317764253,0.04812199,98686.0,98677.0,0.0641]
[1732317764448,0.07852,98688.0,98682.0,0.3608]
[1732317764649,0.07852,98688.0,98677.0,0.0641]
[1732317765050,0.129121,98689.0,98677.0,0.0641]
[1732317765253,0.050601,98689.0,98677.0,0.0641]
[1732317765445,0.129121,98689.0,98677.0,0.0641]
[1732317767453,0.04812099,98689.0,98677.0,0.0641]
[1732317767656,0.050601,98687.0,98677.0,0.0641]
[1732317767856,0.04812099,98689.0,98677.0,0.0641]
[1732317768158,0.050604,98683.0,98677.0,0.0641]
[1732317768457,0.050601,98688.0,98677.0,0.0641]
[1732317768754,0.050602,98686.0,98677.0,0.0641]
[1732317768949,0.050603,98685.0,98677.0,0.0641]
[1732317769645,0.050601,98688.0,98677.0,0.0641]
[1732317769950,0.050603,98685.0,98677.0,0.0641]
[1732317771450,0.04812299,98689.0,98677.0,0.0641]
[1732317772253,0.04812299,98689.0,98677.0,0.0315]
[1732317772453,0.050606,98679.0,98677.0,0.0315]
[1732317772654,0.050607,98677.0,98670.0,0.06449715]
[1732317773056,0.050607,98676.0,98670.0,0.06449715]
[1732317773354,0.050608,98675.0,98665.0,0.0319]
[1732317774552,0.07852,98678.0,98665.0,0.0319]
[1732317775555,0.07852,98679.0,98665.0,0.0319]
[1732317775751,0.07852,98679.0,98669.0,0.06449715]
[1732317775956,0.050608,98675.0,98665.0,0.0319]
[1732317778157,0.07224015,98679.0,98665.0,0.0319]
[1732317778761,0.050608,98675.0,98665.0,0.0319]
[1732317779658,0.09314797,98679.0,98665.0,0.0319]
[1732317779858,0.050608,98675.0,98665.0,0.0319]
[1732317783563,0.09942782,98679.0,98665.0,0.0319]
[1732317783761,0.050608,98675.0,98665.0,0.0319]
[1732317788971,0.06275598,98679.0,98665.0,0.0319]
[1732317789565,0.050608,98675.0,98665.0,0.0319]
[1732317791568,0.08166642,98679.0,98665.0,0.0319]
[1732317791973,0.050608,98675.0,98665.0,0.0319]
[1732317792275,0.01430896,98675.0,98665.0,0.0319]
[1732317792472,0.08166642,98679.0,98665.0,0.0319]
[1732317792773,0.050608,98675.0,98665.0,0.0319]
[1732317799679,0.0784,98678.0,98665.0,0.0319]
[1732317799870,0.050608,98675.0,98665.0,0.0319]
[1732317803579,0.04800799,98678.0,98665.0,0.0319]
[1732317803784,0.050608,98675.0,98665.0,0.0319]
[1732317807078,0.04994466,98682.0,98665.0,0.0319]
[1732317807079,0.04994466,98682.0,98674.0,0.66484]
[1732317807275,0.050601,98689.0,98675.0,0.3608]
[1732317807574,0.050601,98689.0,98687.0,0.3608]
[1732317807775,0.36244001,98696.0,98688.0,0.0955]
[1732317807968,0.0506,98690.0,98688.0,0.0955]
[1732317808168,0.3608,98696.0,98688.0,0.0955]
[1732317808376,0.0506,98690.0,98688.0,0.0955]
[1732317809073,0.0506,98689.0,98688.0,0.0955]
[1732317809280,0.43247787,98696.0,98688.0,0.0955]
[1732317809473,0.38020287,98696.0,98688.0,0.0955]
[1732317809685,0.050587,98693.0,98688.0,0.0955]
[1732317810187,0.050586,98697.0,98688.0,0.0955]
[1732317810885,0.050584,98701.0,98696.0,0.3608]
[1732317811386,0.09649715,98710.0,98696.0,0.3608]
[1732317811387,0.05326925,98699.0,98696.0,0.3608]
[1732317811578,0.00151996,98699.0,98696.0,0.3608]
[1732317815684,0.050588,98704.0,98696.0,0.3608]
[1732317820690,0.08398471,98710.0,98696.0,0.3608]
[1732317821475,0.13456971,98710.0,98696.0,0.3608]
[1732317822083,0.13456971,98710.0,98696.0,0.43904]
[1732317824684,0.11806685,98710.0,98696.0,0.43904]
[1732317825887,0.11806685,98710.0,98696.0,0.3608]
[1732317826095,0.11806685,98710.0,98696.0,0.43904]
[1732317828088,0.06748185,98710.0,98696.0,0.43904]
[1732317828688,0.06449715,98710.0,98696.0,0.43904]
[1732317830397,0.05107068,98711.0,98696.0,0.43904]
[1732317830589,0.050581,98717.0,98705.0,0.3608]
[1732317830791,0.06449715,98715.0,98700.0,0.06449715]
[1732317830984,0.06449715,98720.0,98700.0,0.11508615]
[1732317831189,0.050581,98718.0,98700.0,0.11508615]
[1732317831390,0.050581,98718.0,98700.0,0.050589]
[1732317831591,0.050581,98718.0,98700.0,0.11508615]
[1732317832091,0.02022,98717.0,98700.0,0.11508615]
[1732317832296,0.02022,98717.0,98705.0,0.3608]
[1732317832697,0.05429814,98720.0,98705.0,0.3608]
[1732317832902,0.06449715,98715.0,98705.0,0.3608]
[1732317834082,0.06449715,98715.0,98700.0,0.06449715]
[1732317834295,0.06449715,98710.0,98700.0,0.06449715]
[1732317835792,0.050582,98716.0,98700.0,0.06449715]
[1732317836692,0.09492852,98720.0,98700.0,0.06449715]
[1732317837894,0.050582,98716.0,98700.0,0.06449715]
[1732317839905,0.3608,98715.0,98700.0,0.06449715]
[1732317840299,0.05082973,98720.0,98707.0,0.3608]
[1732317840605,0.06449715,98720.0,98707.0,0.3608]
[1732317840795,0.08471583,98720.0,98707.0,0.3608]
[1732317840994,0.06821297,98720.0,98707.0,0.3608]
[1732317841901,0.11879297,98720.0,98707.0,0.3608]
[1732317842603,0.05058,98719.0,98707.0,0.3608]
[1732317842799,0.06821297,98720.0,98707.0,0.3608]
[1732317843007,0.050581,98718.0,98707.0,0.3608]
[1732317843193,0.050582,98715.0,98707.0,0.3608]
[1732317844295,0.06821297,98720.0,98707.0,0.3608]
[1732317844508,0.050583,98714.0,98707.0,0.3608]
[1732317844706,0.03779596,98720.0,98707.0,0.3608]
[1732317844904,0.06449715,98720.0,98707.0,0.3608]
[1732317845403,0.050583,98713.0,98707.0,0.3608]
[1732317848798,0.050581,98717.0,98707.0,0.3608]
[1732317850603,0.050582,98716.0,98707.0,0.3608]
[1732317851711,0.050582,98715.0,98707.0,0.3608]
[1732317852797,0.02021757,98720.0,98707.0,0.3608]
[1732317853002,0.08471472,98720.0,98707.0,0.3608]
[1732317853813,0.050582,98715.0,98707.0,0.3608]
[1732317854511,0.050581,98718.0,98707.0,0.3608]
[1732317855401,0.08471472,98720.0,98707.0,0.3608]
[1732317855604,0.08471472,98720.0,98704.0,0.032]
[1732317855605,0.050582,98715.0,98704.0,0.032]
[1732317856807,0.05429671,98720.0,98704.0,0.032]
[1732317857919,0.050582,98715.0,98704.0,0.032]
[1732317860820,0.35060041,98718.0,98704.0,0.032]
[1732317861921,0.050582,98715.0,98704.0,0.032]
[1732317862919,0.37081883,98718.0,98704.0,0.032]
[1732317863122,0.050581,98717.0,98704.0,0.032]
[1732317864826,0.3201814,98718.0,98704.0,0.032]
[1732317865525,0.050581,98717.0,98708.0,0.06449715]
[1732317866430,0.3201814,98718.0,98708.0,0.06449715]
[1732317868717,0.23918139,98718.0,98708.0,0.06449715]
[1732317869027,0.050579,98721.0,98708.0,0.06449715]
[1732317869336,0.05058,98720.0,98708.0,0.06449715]
[1732317871038,0.05058,98719.0,98708.0,0.06449715]
[1732317872334,0.12930846,98724.0,98708.0,0.06449715]
[1732317872335,0.06449715,98720.0,98708.0,0.06449715]
[1732317872534,0.05058,98719.0,98708.0,0.06449715]
[1732317872735,0.050581,98717.0,98708.0,0.06449715]
[1732317873135,0.05058,98719.0,98708.0,0.06449715]
[1732317873533,0.12930846,98724.0,98708.0,0.06449715]
[1732317873836,0.07808,98726.0,98708.0,0.06449715]
[1732317874044,0.050581,98717.0,98706.0,0.3608]
[1732317874541,0.050581,98717.0,98707.0,0.06449715]
[1732317876937,0.09830246,98728.0,98707.0,0.06449715]
[1732317877743,0.05058,98720.0,98707.0,0.06449715]
[1732317878937,0.05058,98719.0,98707.0,0.06449715]
[1732317879343,0.050581,98717.0,98706.0,0.3608]
[1732317880934,0.14791136,98728.0,98706.0,0.3608]
[1732317881242,0.06449715,98720.0,98706.0,0.3608]
[1732317881444,0.050581,98718.0,98706.0,0.3608]
[1732317883643,0.06449715,98720.0,98706.0,0.3608]
[1732317883841,0.050581,98717.0,98706.0,0.3608]
[1732317884143,0.050581,98717.0,98707.0,0.06449715]
[1732317884938,0.050582,98716.0,98707.0,0.06449715]
[1732317885246,0.050583,98714.0,98707.0,0.06449715]
[1732317885449,0.050583,98714.0,98706.0,0.3608]
[1732317885647,0.1289943,98720.0,98706.0,0.3608]
[1732317885846,0.0329,98713.0,98706.0,0.3608]
[1732317886050,0.050586,98707.0,98706.0,0.3608]
[1732317889150,0.050586,98707.0,98699.0,0.07796]
[1732317889151,0.050586,98707.0,98698.0,0.3608]
[1732317889350,0.05059,98699.0,98698.0,0.3608]
[1732317891648,0.050592,98696.0,98695.0,0.07796]
[1732317892240,0.42529715,98705.0,98688.0,0.3912]
[1732317892449,0.050595,98691.0,98688.0,0.3608]
[1732317892846,0.050595,98690.0,98688.0,0.3608]
[1732317893149,0.3608,98697.0,98688.0,0.3608]
[1732317893356,0.050595,98689.0,98688.0,0.3608]
[1732317896756,0.33039499,98697.0,98688.0,0.3608]
[1732317897759,0.050595,98690.0,98688.0,0.3608]
[1732317898760,0.050595,98689.0,98688.0,0.3608]
[1732317900853,0.02060429,98697.0,98688.0,0.3608]
[1732317901049,0.1289943,98700.0,98688.0,0.3608]
[1732317901760,0.1803019,98700.0,98688.0,0.3608]
[1732317901958,0.05059,98699.0,98688.0,0.3608]
[1732317902459,0.1803019,98700.0,98688.0,0.3608]
[1732317902653,0.05059,98699.0,98688.0,0.3608]
[1732317902960,0.050595,98689.0,98688.0,0.3608]
[1732317904955,0.050595,98690.0,98688.0,0.3608]
[1732317906354,0.08539974,98700.0,98688.0,0.3608]
[1732317906547,0.050595,98689.0,98688.0,0.3608]
[1732317906748,0.050596,98687.0,98686.0,0.033]
[1732317907051,0.050596,98687.0,98686.0,0.03064427]
[1732317908357,0.050597,98686.0,98685.0,0.0015198]
[1732317908758,0.02022372,98690.0,98671.0,0.078]
[1732317909057,0.050596,98689.0,98671.0,0.078]
[1732317909356,0.050598,98684.0,98671.0,0.078]
[1732317910052,0.050599,98683.0,98671.0,0.078]
[1732317910755,0.00139036,98680.0,98671.0,0.078]
[1732317911558,0.00139036,98680.0,98677.0,0.0316]
[1732317911757,0.00139036,98679.0,98677.0,0.0316]
[1732317912848,0.10201781,98683.0,98677.0,0.0316]
[1732317912849,0.02240816,98683.0,98677.0,0.0316]
[1732317913160,0.08472087,98690.0,98677.0,0.0316]
[1732317913456,0.050599,98683.0,98677.0,0.0316]
[1732317914259,0.050596,98687.0,98677.0,0.0316]
[1732317914467,0.13453871,98690.0,98677.0,0.09609715]
[1732317914761,0.050597,98686.0,98677.0,0.09609715]
[1732317915062,0.050597,98686.0,98677.0,0.0316]
[1732317915459,0.050597,98685.0,98677.0,0.0316]
[1732317916057,0.050597,98685.0,98684.0,0.3608]
[1732317916556,0.13453871,98690.0,98684.0,0.3608]